Cogmind - Beta 16.1 @@@ ROGUE MODE // 2026.02.16 @ 23:29:56 Player: ZeroJewelz Result: Destroyed by D-53 Grenadier with Mini Grenade Launcher Performance ------------- Evolutions (0) 0 Regions Visited (0) 0 Robots Destroyed (0) 0 Value Destroyed (0) 0 Prototype IDs (0) 0 Alien Tech Used (0) 0 Bonus (0) 0 TOTAL SCORE: 0 Bonus ------- None Cogmind --------- Core Integrity 0/250 Matter 300/300 Energy 100/100 System Corruption 0% Temperature Cool (0) Movement Core (100) Ox1 Location -11/Scrapyard Parts ------- > --- POWER (1) -------- (None) > --- PROPULSION (2) --- (None) > --- UTILITY (2) ------ Small Storage Unit > --- WEAPON (2) ------- (None) > --- INVENTORY (8) ---- (None) Peak State ------------ > --- POWER ------------ Light Ion Engine > --- PROPULSION ------- Light Treads Light Treads > --- UTILITY ---------- Small Storage Unit > --- WEAPON ----------- Medium Laser Assault Rifle > --- INVENTORY -------- (None) [Rating: 6] Favorites ----------- Power Light Ion Engine Engine Light Ion Engine Propulsion Light Treads Treads Light Treads Utility Small Storage Unit Storage Small Storage Unit Weapon Assault Rifle Energy Gun Medium Laser Ballistic Gun Assault Rifle Build | -11 ------- Run | Yrd Slots Evolved . | . Power . | . Propulsion . | . Utility . | . Weapon . | . Parts Attached 6 | 6 Power 1 | 1 Engine 1 | 1 Core . | . Reactor . | . Propulsion 2 | 2 Treads 2 | 2 Leg . | . Wheel . | . Hover . | . Flight . | . Utility 1 | 1 Device . | . Storage 1 | 1 Processor . | . Hackware . | . Protection . | . Artifact . | . Weapon 2 | 2 Energy Gun 1 | 1 Energy Cannon . | . Ballistic Gun 1 | 1 Ballistic Cannon . | . Launcher . | . Special Weapon . | . Impact Weapon . | . Slashing Weapon . | . Piercing Weapon . | . Special Melee Weapon . | . Unidentified Prototypes . | . Parts Lost 5 | 5 Power 1 | 1 Propulsion 2 | 2 Utility . | . Weapon 2 | 2 Highest Loss Streak 5 | 5 To Critical Strikes . | . Average Backups . | . Power . | . Propulsion . | . Utility . | . Weapon . | . Tool/Special . | . Unused Backups . | . Power . | . Propulsion . | . Utility . | . Weapon . | . Tool/Special . | . Average Slot Usage (%) . | . Peak Build Rating 6 | 6 Average Rating 5 | 5 On Entrance . | . Avg Prop Armor Cover (%) 12 | 12 Naked Turns . | . Heaviest Build 12 | 12 Greatest Support 40 | 40 Greatest Overweight (x) . | . Average Overweight (x) . | . Largest Inventory Capacity 8 | 8 Average Capacity 7 | 7 Most Carried 3 | 3 Average Carried . | . Final Capacity 8 | 8 Final Carried . | . Class Distribution -------------------- None Dominant Class ---------------- None Resources | -11 ----------- Run | Yrd Matter Collected 246 | 246 Remotely . | . Salvage Created . | . Parts . | . Haulers Intercepted . | . Recyclers Shooed . | . Parts Field Recycled . | . Retrieved Matter . | . Parts Self-Destructed . | . Prevented . | . Parts Restored . | . Kills | -11 ------- Run | Yrd Combat Hostiles Destroyed . | . Classes Destroyed . | . Best Kill Streak . | . Combat Bots Only . | . Max Kills in Single Turn . | . Gunslinging . | . Exploded . | . Melee . | . Uniques/NPCs Destroyed . | . Combat | -11 -------- Run | Yrd Hostile Shots Fired 51 | 51 Missed 18 | 18 Hits 33 | 33 Melee 5 | 5 Projectile 28 | 28 AOE 10 | 10 Part Disruptions 1 | 1 Damage Taken 795 | 795 Core 250 | 250 Absorbed by Shields . | . Core Remaining (%) . | . Volleys Fired 2 | 2 Largest 2 | 2 Hottest 70 | 70 Shots Fired 3 | 3 Gun 3 | 3 Cannon . | . Launcher . | . Special . | . Kinetic 2 | 2 Thermal 1 | 1 Explosive . | . Electromagnetic . | . Robot Hit Streak 1 | 1 Robot Miss Streak 1 | 1 Penetration Max . | . Secondary Targets . | . Shots Hit Robots 2 | 2 Core Hits 1 | 1 Critical Kills . | . Critical Parts Destroyed . | . Critical Strikes . | . Melee Attacks . | . Impact . | . Slashing . | . Piercing . | . Sneak Attacks . | . Combat Hostiles . | . Follow-up Attacks . | . Damage Inflicted 28 | 28 Guns 28 | 28 Cannons . | . Explosions . | . Melee . | . Ramming . | . Kinetic 15 | 15 Thermal 13 | 13 Explosive . | . Electromagnetic . | . Impact . | . Slashing . | . Piercing . | . Highest Corruption . | . Average Corruption . | . Corruption Purged . | . Corruption Blocked . | . Overload Shots . | . Overflow Damage . | . Projectiles . | . Explosions . | . Melee . | . Knockbacks . | . Impact . | . Kinetic . | . Secondary . | . Self-Inflicted Damage . | . Shots . | . Rammed 1 | 1 Targets Rammed 1 | 1 Kicked . | . Crushed . | . Highest Temperature 72 | 72 Average Temperature 35 | 35 Received Heat Transfer 200 | 200 Siege Activations . | . Martial Activations . | . Shielding Activations . | . Robots Disrupted . | . Combat Hostiles . | . Robots Corrupted . | . Combat Hostiles . | . Parts Fried . | . Impact Corruptions . | . Robots Melted . | . Combat Hostiles . | . Parts Melted . | . Heat Transferred 37 | 37 Parts Sabotaged . | . Parts Stolen . | . Parts Stripped . | . Power Chain Reactions . | . Alert | -11 ------- Run | Yrd Maximum Alert Level . | . Low Security (%) 100 | 100 Level 1 . | . Level 2 . | . Level 3 . | . Level 4 . | . Level 5 . | . High Security . | . Max Security . | . Peak Influence . | . Initial . | . Average . | . Influence Increases . | . Influence Decreases . | . Squads Dispatched . | . Investigation . | . Extermination . | . Reinforcement . | . Assault . | . Garrison . | . Intercept . | . Searches Triggered . | . Construction Impeded . | . Haulers Reinforced . | . Active Scanning Responses . | . Cargo Convoy Interrupts . | . Stealth | -11 --------- Run | Yrd Distress Signals . | . Communications Jammed . | . Distress Signals . | . Times Spotted 22 | 22 Peak Tracking Total 20 | 20 Tactical Retreats . | . Traps | -11 ------- Run | Yrd Traps Triggered . | . Indirectly . | . Trap Hack Attempts . | . Triggered . | . Disarmed . | . Reprogrammed . | . Reused . | . Traps Extracted . | . Installed . | . Triggered . | . Machines | -11 ---------- Run | Yrd Machines Disabled . | . Max in Single Turn . | . Machines Repaired . | . Machines Dismantled . | . Machines Sabotaged . | . Overloaded Fab Kills . | . Hacking | -11 --------- Run | Yrd Machines Accessed . | . Terminals . | . Fabricators . | . Repair Stations . | . Recycling Units . | . Scanalyzers . | . Garrison Access . | . Total Hacks . | . Successful . | . Failed . | . Catastrophic . | . Database Lockouts . | . Manual . | . Terminals . | . Fabricators . | . Repair Stations . | . Recycling Units . | . Scanalyzers . | . Garrison Access . | . Terminal Hacks . | . Fabricator Hacks . | . Repair Station Hacks . | . Recycling Unit Hacks . | . Scanalyzer . | . Garrison Access Hacks . | . Unauthorized Hacks . | . Terminals . | . Fabricators . | . Repair Stations . | . Recycling Units . | . Scanalyzers . | . Garrison Access . | . Data Cores Recovered . | . Used . | . Hacking Detections . | . Full Trace Events . | . Feedback Events . | . Feedback Blocked . | . Robot Schematics Acquired . | . Robots Built . | . Authchips . | . Time . | . Total Robot Build Rating . | . Part Schematics Acquired . | . Parts Built . | . Authchips . | . Time . | . Total Part Build Rating . | . Part Studies Acquired . | . Parts Repaired . | . Time . | . Parts Recycled . | . Recycled Matter . | . Retrieved Matter . | . Retrieved Components . | . Parts Scanalyzed . | . Part Schematics Acquired . | . Parts Damaged . | . Bothacking | -11 ------------ Run | Yrd Used RIF Installer . | . Robots Hacked . | . Non-combat . | . Combat . | . Robot Hacks Applied . | . Relay Couplers Released . | . Fabnet Peak Effective % . | . Robots Rewired . | . Allies Hacked . | . Hacks Repelled . | . Allies | -11 -------- Run | Yrd Total Allies . | . Largest Group . | . Highest-Rated Group . | . Highest-Rated Ally . | . Total Orders . | . Ally Attacks . | . Total Damage . | . Kills . | . Allies Corrupted . | . Allies Melted . | . Intel | -11 ------- Run | Yrd Active Infowar (turns) . | . Robot Analysis Total . | . Derelict Logs Recovered . | . Drone Launches . | . Drone Recoveries . | . Exploration | -11 ------------- Run | Yrd Turns Passed 928 | 928 Spaces Moved 299 | 299 Core 6 | 6 Treads 293 | 293 Legs . | . Wheels . | . Hover . | . Flight . | . Fastest Speed 50 | 50 Average Speed 157 | 157 Slowest Speed 160 | 160 Overloaded Moves . | . Propulsion Burnouts . | . Robots Hopped . | . Potential Cave-ins . | . Cave-ins Triggered . | . Exploration Rate (%) 21 | 21 Regions Visited . Branch Regions . Pre-discovered Areas . | . Known Exits Taken . | . Unknown Exits Taken . | . Scrap Searched . | . Spaces Dug . | . Terrain Destroyed . | . Melee . | . Projectile . | . AOE . | . Terrain Rammed . | . Walls Destroyed . | . Machines Disabled . | . Actions | -11 --------- Run | Yrd Total 751 | 751 Wait 437 | 437 Move 299 | 299 Hop . | . Pick Up 6 | 6 Fast Attach . | . Attach 6 | 6 Detach . | . Swap . | . Drop . | . Fire 2 | 2 Melee . | . Ram . | . Kick . | . Crush 1 | 1 Escape Stasis . | . Rewire . | . Trap . | . Miscellaneous . | . Route ------- -11/Scrapyard (discovered 1 exit: [*Mat]) History --------- Turn | Location | Event 7 | -11/Scrapyard | Discovered new exit (range 16) 880 | -11/Scrapyard | Assembled infested the area 924 | -11/Scrapyard | Core integrity fell below 50% 928 | -11/Scrapyard | Core integrity fell below 20% 929 | -11/Scrapyard | Destroyed by D-53 Grenadier with Mini Grenade Launcher Last Messages --------------- [Achievement: For Emergencies Only] as-69849 destroyed. as-45587 destroyed. as-82325 destroyed. as-65525 destroyed. Lgt. Treads destroyed. as-61884 destroyed. as-94798 destroyed. as-64091 destroyed. as-82011 destroyed. The unstable cave ceiling collapses. as-10909 destroyed. D-53 Grenadier suffers critical hit (Destroy). as-89805 destroyed. as-22445 destroyed. Assault Rifle destroyed. The unstable cave ceiling collapses. Lgt. Ion Engine destroyed. Lgt. Treads destroyed. [Achievement: First Step to Greatness] Map ----- +----------------------------------------------------+ | ?????????????????????????????????????????????????? | | ?????????????????????????????????????????????????? | | ?????????????????????????????????????????????????? | | ?????????????????????????????????????????????????? | | ?????????????????????????????????????????????????? | | ????????????????????????#????????????????????????? | | ??????????????????????? "##??????????????????????? | | ??????????????????????? "??????????????????????? | | ??????????????????????? ?????????????????????? | | ????????????????????? #???????????????????? | | ????????????????????# ???????????????????? | | ???????????????????? ????????????????????? | | ????????????????????# ????????????????????? | | ????????????????????# ????????????????????? | | ??????????########### ????????????????????? | | ??????????# ?????????????????????? | | ??????????# ?????????????????????? | | ??????????# ?????????????????????? | | ??????????# d ##????????????????????? | | ??????????# ##???????????????????? | | ??????????########## d ##??????????????????? | | ??????????????????# #??????????????????? | | ??????????????????# ##??????????????????? | | ??????????????????## ## #??????????????????? | | ???????????????????# # #?#####????????????? | | ???????????????????## @ ### ##???????????? | | ????????????????????## #???????????? | | ?????????????????????# #???????????? | | ?????????????????????## #???????????? | | ??????????????????????## #???????????? | | ???????????????????????# #???????????? | | ???????????????????????# #########???? | | ???????????????????????# % # #???? | | ???????????????????????# t # #???? | | ??????????????????????# ########## # ##??? | | ??????????????????????#####????????# #??? | | ???????????????????????????????????# # ##??? | | ???????????????????????????????????# # #???? | | ????????????????????????????######## ########???? | | ????????????????????????????# # # #???? | | ????????????????????????????# # # #???? | | ????????????????????????????# # # #???? | | ????????????????????????????# #???? | | ????????????????????????????# # # #???? | | ????????????????????????????# # # #???? | | ????????????????????????????######## ########???? | | ???????????????????##########???# #???????? | | ???????????????????# #???# #???????? | | ???????????????????# #???# ######### | | ????????############ [ ##### | +----------------------------------------------------+ Best States ------------- Heat Dissipation 25 Energy Generation 10 Energy Capacity 125 Matter Stores 297 Matter Capacity 300 Sight Range 16 Terrain Scan Density 10 Evasion (%) 50 Recoil Reduction 2 Item Schematics ----------------- None Robot Schematics ------------------ None Fabricated ------------ Nothing Repaired ---------- Nothing Studied --------- None Alien Tech Used ----------------- None Achievements -------------- DATA ERROR: Steam Global Achievement% First Step to Greatness For Emergencies Only Hunted Challenges ------------ None Game ------ Seed MultitargetingIonicDevice Manual? 0 Play Time 00:10:26 Cumulative 3.6 hours Start 2026.02.16 @ 23:23:27 End 2026.02.16 @ 23:29:56 Sessions 0 Manual Loads 0 Difficulty Rogue Special Mode None Game No. 7 Rogue 3 Adventurer 0 Explorer 4 Win Type - Total 0 Types 0/0/0/0/0/0/0/0/0/0 Lore% 3 Gallery% 8 Achievement% 7 Wizard Run 0 Options --------- Layout 1 ASCII 0 Keyboard 0 Movement Arrows Keybinds 0 Fullscreen 1 Font 24/Smallcaps Map View 50x35 Zoom Use 0% Tactical HUD 0 Map Filters NONE Filters NONE Steam 1 RUN: ee63f496-b5bd-4774-8790-bd7e5168659a